bitfinex-derivatives/quotes_ETHF0:USTF0_20250804
["timestamp","ask_amount","ask_price","bid_price","bid_amount"]
[1754274310985,2.24547,3545.4,3545.0,0.56412]
[1754274311279,2.24547,3545.4,3545.0,1.51782]
[1754274311480,2.24547,3545.4,3545.1,0.9537]
[1754274312183,2.24547,3545.4,3545.1,1.51779]
[1754274312683,2.24547,3545.4,3545.2,0.56408]
[1754274312684,1.6814,3545.4,3545.2,0.56408]
[1754274312981,1.6814,3545.4,3545.3,1.9475]
[1754274313378,1.6814,3545.4,3545.3,0.9537]
[1754274313584,1.6814,3545.4,3545.3,1.9475]
[1754274313778,0.56404,3545.6,3545.4,0.56406]
[1754274314083,0.56402,3545.7,3545.5,1.47813]
[1754274314376,1.3066365,3545.7,3545.5,1.47813]
[1754274314577,0.7426165,3545.7,3545.5,1.47813]
[1754274314778,1.3066365,3545.7,3545.5,1.47813]
[1754274314976,0.7426165,3545.7,3545.5,1.47813]
[1754274315483,1.3066365,3545.7,3545.5,1.47813]
[1754274316177,0.7426165,3545.6,3545.5,1.47813]
[1754274316375,0.93506902,3545.6,3545.5,1.47813]
[1754274317482,0.93506902,3545.6,3545.5,5.27883]
[1754274318579,0.7426165,3545.6,3545.5,8.26554647]
[1754274318785,0.7426165,3545.7,3545.5,8.26554647]
[1754274318984,3.2078,3545.8,3545.7,5.27881]
[1754274319284,4.14638542,3545.8,3545.7,5.27881]
[1754274319579,4.14638542,3545.8,3545.7,4.46071]
[1754274320978,4.14638542,3545.8,3545.7,3.8967]
[1754274321184,4.71038542,3545.8,3545.6,0.9141]
[1754274321487,0.74576203,3545.7,3545.6,0.9141]
[1754274321681,0.74576203,3545.7,3545.6,1.7206]
[1754274321881,0.74576203,3545.7,3545.6,2.6347]
[1754274322084,3.2078,3545.8,3545.7,0.56401]
[1754274322384,4.14664554,3545.8,3545.7,5.27881]
[1754274322981,4.14664554,3545.8,3545.7,4.46071]
[1754274323587,4.14664554,3545.8,3545.7,3.8967]
[1754274324481,3.95375853,3545.8,3545.7,3.8967]
[1754274325085,3.95375853,3545.8,3545.7,4.7148]
[1754274326184,3.2078,3545.8,3545.7,4.7148]
[1754274328585,3.2078,3546.6,3546.3,0.8181]
[1754274328783,3.2078,3546.6,3546.5,5.27868]
[1754274329090,4.14553117,3546.6,3546.5,4.46058]
[1754274329289,4.14553117,3546.6,3546.5,5.27868]
[1754274329788,4.14549376,3546.6,3546.5,5.27868]
[1754274330186,3.39966659,3546.6,3546.5,4.7148]
[1754274330583,3.39966659,3546.6,3545.3,3.9469925]
[1754274330584,5.55479001,3546.6,3546.0,0.9141]
[1754274330786,0.56395,3546.1,3545.9,4.7148]
[1754274330993,3.2078,3546.2,3546.1,2.3557]
[1754274331189,3.2078,3546.2,3546.1,4.7148]
[1754274331385,0.56388,3546.5,3546.4,1.8889]
[1754274331690,3.2078,3546.6,3546.5,2.45278]
[1754274331895,3.94872079,3546.6,3546.5,4.7148]
[1754274332092,3.2078,3546.6,3546.5,4.7148]
[1754274332590,3.39949015,3546.6,3546.5,4.7148]
[1754274332793,3.96336015,3546.6,3546.5,4.7148]
[1754274333287,3.96336015,3546.6,3546.5,3.8967]
[1754274333884,3.39949015,3546.6,3546.5,3.8967]
[1754274334083,3.2078,3546.6,3546.5,4.7148]
[1754274335586,3.2078,3546.6,3545.7,1.0937]
[1754274335792,3.2078,3546.2,3545.7,0.8181]
[1754274335983,3.2078,3546.2,3546.0,1.8889]
[1754274336183,3.77174,3546.2,3546.1,0.9141]
[1754274336386,3.77174,3546.2,3545.4,3.2078]
[1754274336387,3.77174,3546.2,3545.6,0.9141]
[1754274336591,3.77182,3545.7,3545.4,0.56404]
[1754274336797,3.2078,3545.7,3545.6,3.8007]
[1754274336989,3.2078,3545.7,3545.6,4.7148]
[1754274337397,3.77171,3546.4,3546.3,1.8889]
[1754274337587,4.51206515,3546.4,3546.3,4.7148]
[1754274337788,3.2078,3546.4,3546.3,4.7148]
[1754274338482,0.56387,3546.6,3546.4,2.8259]
[1754274338686,0.56387,3546.6,3546.5,4.7148]
[1754274338889,0.75552693,3546.6,3546.5,4.7148]
[1754274339091,0.19165693,3546.6,3546.5,4.7148]
[1754274339291,0.56385,3546.7,3546.5,0.9141]
[1754274339492,0.56388,3546.5,3546.4,0.6269]
[1754274339696,0.56388,3546.5,3546.4,3.8007]
[1754274339995,0.56388,3546.5,3546.4,4.7148]
[1754274340290,0.56388,3546.5,3545.7,3.2078]
[1754274340291,1.30453893,3546.7,3546.6,4.7148]
[1754274340495,3.2078,3546.8,3546.7,4.7148]
[1754274340795,3.94860492,3546.8,3546.7,4.7148]
[1754274341287,0.74080492,3546.8,3546.7,4.7148]
[1754274341489,3.70259322,3547.8,3547.7,1.341]
[1754274341683,3.6991,3547.8,3547.7,4.7148]
[1754274342088,1.00561322,3548.0,3547.9,0.6269]
[1754274342292,1.00561322,3548.2,3547.9,5.43927647]
[1754274342589,1.82441322,3548.2,3548.1,1.341]
[1754274342798,1.82441322,3548.2,3548.1,4.7148]
[1754274343092,4.70471322,3548.2,3548.1,3.8967]
[1754274343391,2.3323,3547.8,3547.7,2.6347]
[1754274343595,2.8803,3547.8,3547.7,3.8967]
[1754274343791,2.8803,3547.8,3547.7,4.7148]
[1754274343989,3.6703,3547.8,3547.7,4.7148]
[1754274344496,0.548,3547.8,3547.7,4.7148]
[1754274344690,2.43143,3548.1,3547.8,2.7102]
[1754274344892,0.56363,3548.1,3548.0,3.7309]
[1754274345192,3.9978,3548.4,3547.4,3.2078]
[1754274345193,2.56121,3548.3,3548.2,1.7969]
[1754274345392,4.23401,3548.3,3548.2,4.5071]
[1754274346191,1.8678,3548.3,3547.8,0.8941]
[1754274346395,3.6704,3547.9,3547.8,3.7309]
[1754274346891,2.5926,3547.9,3547.8,4.5071]
[1754274347197,0.5211,3548.2,3548.1,3.9232]
[1754274347501,0.75902844,3548.5,3548.1,1.7969]
[1754274347698,3.35162844,3548.5,3548.4,1.7969]
[1754274347991,4.42942844,3548.5,3548.4,4.5071]
[1754274348588,4.42942844,3548.5,3548.4,3.7309]
[1754274348991,4.42942844,3548.5,3548.4,4.5071]
[1754274348992,3.35162844,3548.5,3548.4,4.5071]
[1754274349198,4.42942844,3548.5,3548.4,3.7309]
[1754274350098,4.23397,3548.5,3548.4,4.5071]
[1754274351001,1.3111,3548.0,3547.9,5.07076]
[1754274351198,0.5211,3548.0,3547.9,4.5071]
[1754274351494,1.08474,3548.0,3547.9,4.5071]
[1754274351693,1.87474,3548.0,3547.9,4.5071]
[1754274351895,4.23404,3548.0,3547.9,3.7309]
[1754274352394,4.23404,3548.0,3547.9,4.5071]
[1754274353289,4.23404,3548.0,3547.5,0.56372]
[1754274353290,0.56368,3547.8,3547.5,0.56372]
[1754274353490,3.15623,3548.1,3548.0,0.5839]
[1754274353792,3.15623,3548.1,3548.0,1.478]
[1754274353997,3.15623,3548.1,3548.0,2.1752]
[1754274354300,4.2341,3547.7,3547.6,4.5071]
[1754274354594,4.2341,3547.7,3547.3,3.2078]
[1754274354595,0.56358,3548.4,3548.3,1.0399]
[1754274354788,0.56357,3548.5,3548.4,4.5071]
[1754274354992,1.08467,3548.5,3548.4,4.5071]
[1754274355201,2.56117,3548.5,3548.4,4.5071]
[1754274355402,1.9976,3548.5,3548.4,4.5071]
[1754274355595,2.5926,3548.5,3548.4,4.5071]
[1754274355795,3.6704,3548.5,3548.4,4.5071]
[1754274356093,4.23401,3548.2,3548.1,1.478]
[1754274356492,0.56345,3549.3,3548.9,0.8941]
[1754274356698,1.3417,3549.3,3549.2,4.5071]
[1754274357200,3.2095,3549.3,3549.2,4.5071]
[1754274357399,1.5989,3549.4,3549.3,3.2151]
[1754274357602,3.0754,3549.4,3549.3,4.5071]
[1754274358503,3.2078,3549.6,3549.3,2.36033]
[1754274358702,6.4173,3549.6,3549.5,4.5071]
[1754274358898,6.60309719,3549.6,3549.5,4.5071]
[1754274359090,1.08448,3549.7,3549.6,4.5071]
[1754274359294,3.77292,3549.4,3549.3,3.2151]
[1754274359495,0.5211,3549.4,3549.3,4.5071]
[1754274359697,3.0754,3549.7,3549.6,1.7969]
[1754274359896,3.26118365,3549.7,3549.6,4.5071]
[1754274360094,3.39528365,3549.7,3549.6,0.8941]
[1754274360295,1.3417,3548.7,3548.5,3.2078]
[1754274360503,3.2095,3548.6,3548.5,3.7917]
[1754274360801,0.5211,3548.6,3548.5,7.7149]
[1754274361502,1.3111,3548.9,3548.8,4.5071]
[1754274361802,3.2095,3548.9,3548.8,2.1752]
[1754274362101,3.2095,3548.9,3548.8,1.478]
[1754274362305,3.2933,3548.9,3548.8,0.8941]
[1754274362692,0.5211,3548.9,3548.8,4.5071]
[1754274362895,3.2078,3549.5,3548.5,3.2078]
[1754274362896,2.84882,3549.4,3549.3,1.2811]
[1754274363100,3.63882,3549.4,3549.3,4.5071]
[1754274363595,3.77292,3549.4,3549.3,4.5071]
[1754274363998,3.773,3548.9,3548.8,3.2151]
[1754274364203,3.2095,3548.9,3548.8,3.2151]
[1754274364907,3.2095,3548.9,3548.8,4.5071]
[1754274365103,3.2095,3548.9,3548.8,0.8941]
[1754274365104,3.2933,3548.9,3548.8,0.8941]
[1754274366298,3.2095,3548.9,3548.8,0.8941]
[1754274366898,3.2095,3548.9,3548.8,1.478]
[1754274367598,0.79,3548.2,3547.7,3.2078]
[1754274367902,2.1317,3548.2,3548.1,3.7309]
[1754274368097,3.2095,3548.2,3548.1,3.7309]
[1754274368304,3.2095,3548.2,3548.1,4.5071]
[1754274368700,3.2095,3548.2,3548.1,0.8941]
[1754274369301,3.2933,3548.2,3548.1,0.8941]
[1754274369494,3.2095,3548.2,3548.1,0.8941]
[1754274369708,3.2095,3547.8,3547.7,6.4229]
[1754274370005,3.2078,3548.6,3547.8,2.7102]
[1754274370210,1.0778,3549.1,3549.0,4.5071]
[1754274370211,3.0754,3549.1,3549.0,4.5071]
[1754274370501,2.69517,3549.1,3549.0,4.5071]
[1754274370701,3.77297,3549.1,3549.0,4.5071]
[1754274371108,1.9976,3549.1,3549.0,4.5071]
[1754274371409,1.08457,3549.1,3549.0,4.5071]
[1754274371610,0.5211,3549.1,3549.0,4.5071]
[1754274372597,3.2095,3549.1,3549.0,3.2151]
[1754274372804,3.3961872,3549.1,3549.0,0.8941]
[1754274373704,3.77302,3548.8,3548.7,3.2151]
[1754274373909,3.95975261,3548.8,3548.7,3.2151]
[1754274374304,3.95975261,3548.8,3548.7,3.191]
[1754274374504,2.18433261,3548.8,3548.7,4.5469]
[1754274374904,2.18434392,3548.8,3548.7,4.5469]
[1754274375599,0.56352,3548.9,3548.7,4.5469]
[1754274375600,1.0,3550.0,3549.2,1.8559]
[1754274375795,1.0,3550.0,3549.4,1.8559]
[1754274375796,1.9,3549.7,3549.4,1.8559]
[1754274376004,0.8426,3549.6,3549.5,1.8896]
[1754274376209,0.8426,3549.6,3549.5,1.0158]
[1754274376210,1.0574,3549.6,3549.5,1.0158]
[1754274376807,1.0574,3549.6,3549.5,1.8896]
[1754274377002,0.8426,3549.6,3549.5,1.8896]
[1754274377308,0.8426,3549.6,3549.5,2.7297]
[1754274377904,3.2078,3549.7,3549.5,2.7297]
[1754274378204,3.2078,3549.7,3549.6,1.8559]
[1754274378408,3.2078,3549.7,3549.6,2.7297]
[1754274378805,3.2078,3549.7,3549.6,4.6208]
[1754274379205,3.2078,3549.7,3549.4,0.56342]
[1754274379206,2.0716,3549.6,3549.5,0.8738]
[1754274379408,3.2613,3549.6,3549.5,3.2213]
[1754274379712,2.0716,3549.6,3549.5,4.6208]
[1754274380214,3.129,3549.6,3549.5,4.6208]
[1754274381407,3.2613,3549.6,3549.5,2.2055]
[1754274382510,3.2613,3549.6,3549.5,3.7847]
[1754274382813,3.2613,3549.6,3549.5,3.2213]
[1754274384314,1.0,3550.0,3549.9,5.18414]
[1754274385112,3.0716,3550.0,3549.9,5.18414]
[1754274385318,2.3907,3550.0,3549.9,5.18414]
[1754274385516,1.0,3550.0,3549.9,5.18414]
[1754274388819,17.8044232,3558.8,3550.8,0.6248]
[1754274388820,0.5903,3550.9,3550.8,0.6248]
[1754274389029,3.22513,3550.6,3550.5,4.4802]
[1754274389218,2.84077526,3550.6,3550.5,4.4802]
[1754274389418,4.86307526,3550.6,3550.5,4.4802]
[1754274389819,5.24743,3550.6,3550.5,1.1842]
[1754274390019,5.24746,3550.4,3550.3,3.2078]
[1754274390226,5.24752,3550.0,3549.9,3.8326]
[1754274390526,5.24752,3550.0,3549.9,4.7064]
[1754274390714,5.24752,3550.0,3549.9,3.8326]
[1754274390921,5.24759,3549.6,3549.5,0.6248]
[1754274391127,5.24759,3549.6,3549.4,3.2078]
[1754274391128,4.6842,3549.5,3549.4,3.2078]
[1754274391326,3.7193,3549.5,3549.4,3.2078]
[1754274391626,0.56339,3549.6,3549.0,3.8326]
[1754274391627,5.24768,3549.1,3549.0,3.8326]
[1754274391821,5.24768,3549.1,3549.0,3.2078]
[1754274394230,5.24768,3549.1,3549.0,3.8326]
[1754274394428,5.24768,3549.1,3549.0,5.5465]
[1754274394621,5.24768,3549.1,3549.0,7.688]
[1754274395523,3.44018,3549.1,3549.0,7.688]
[1754274396032,2.8767,3549.1,3549.0,7.688]
[1754274396324,1.8075,3549.4,3549.0,7.688]
[1754274396325,0.56344,3549.3,3549.0,5.66238]
[1754274396526,3.42827,3549.8,3549.5,2.5891]
[1754274396727,3.44007,3549.8,3549.7,4.4802]
[1754274397030,3.61886828,3549.8,3549.7,4.4802]
[1754274397328,3.42822,3550.1,3549.7,1.8911]
[1754274397520,3.42822,3550.1,3549.9,1.8911]
[1754274397717,3.42822,3550.1,3550.0,4.4802]
[1754274398126,0.17879708,3550.1,3550.0,4.4802]
[1754274398318,20.956,3550.3,3550.0,2.45441]
[1754274398523,20.956,3550.3,3550.2,5.04349]
[1754274399219,20.956,3550.3,3550.2,4.4802]
[1754274399425,25.6402,3550.3,3550.2,4.4802]
[1754274399833,4.6842,3550.3,3550.2,4.4802]
[1754274400129,3.42824,3549.9,3549.8,3.2078]
[1754274403728,5.24754,3549.9,3549.8,3.2078]
[1754274404034,5.24754,3549.9,3549.8,5.5677]
[1754274404330,3.7193,3549.9,3549.8,7.7612]
[1754274404534,4.28264,3549.9,3549.8,7.7612]
[1754274404731,5.19794,3549.9,3549.8,7.7612]
[1754274406637,5.19794,3549.9,3549.8,6.0481]
[1754274407735,0.17909122,3549.9,3549.7,0.56336]
[1754274407928,1.00561322,3550.7,3549.5,1.40851]
[1754274407929,2.4991,3550.4,3550.3,0.6362]
[1754274408233,1.6959,3550.7,3550.6,1.3781]
[1754274408433,3.9006,3550.4,3550.3,4.7681]
[1754274408733,4.7038,3550.4,3550.3,7.7726]
[1754274408932,4.7038,3550.4,3550.3,8.33588]
[1754274417033,4.7038,3550.8,3550.7,4.5543]
[1754274417433,24.1318,3551.1,3550.3,3.2078]
[1754274417434,4.7038,3550.4,3550.3,3.844]
[1754274418042,4.7038,3550.4,3550.3,7.43377]
[1754274418233,4.7038,3550.4,3550.3,8.32537]
[1754274418940,4.7038,3550.4,3550.3,7.43377]
[1754274419339,4.7038,3550.4,3550.3,3.2078]
[1754274420444,1.8917,3550.1,3550.0,3.48412]
[1754274420839,3.4144,3550.0,3549.9,3.2078]
[1754274421045,4.7038,3550.0,3549.9,3.2078]
[1754274422939,0.56332,3550.1,3549.5,3.2078]
[1754274422940,4.7038,3549.6,3549.5,3.2078]
[1754274423340,1.8917,3549.2,3549.1,3.844]
[1754274423543,4.7038,3549.2,3549.1,3.844]
[1754274423847,4.7038,3549.2,3549.1,3.2078]
[1754274424343,1.8917,3548.8,3548.7,5.1354]
[1754274424544,4.7038,3548.8,3548.7,7.7621]
[1754274426043,4.7038,3548.8,3548.7,8.32563]
[1754274426348,4.7038,3548.8,3548.7,7.7621]
[1754274427339,5.26731,3548.8,3548.7,7.7621]
[1754274427545,5.14893242,3550.1,3548.7,7.7621]
[1754274427546,0.19838917,3549.6,3549.5,4.5543]
[1754274427853,4.46394,3549.9,3549.8,1.3781]
[1754274428148,2.45507,3549.7,3549.6,0.6362]
[1754274428344,3.25827,3549.7,3549.6,0.6362]
[1754274428744,4.7038,3549.7,3549.6,0.6362]
[1754274429140,4.7038,3549.7,3549.6,4.5543]
[1754274429345,2.91418178,3550.9,3549.6,4.5543]
[1754274429346,4.7038,3550.3,3550.2,0.6362]
[1754274429651,5.44611381,3550.3,3550.2,0.6362]
[1754274432147,5.44611381,3550.3,3550.2,3.6627]
[1754274432850,5.44611381,3550.3,3550.2,2.8517]
[1754274433450,5.26708,3550.3,3550.2,2.8517]
[1754274433651,5.44602282,3550.3,3550.2,2.8517]
[1754274433850,5.44602282,3550.3,3550.2,1.1857]
[1754274434046,4.7283,3550.0,3549.5,3.2078]
[1754274434251,4.7283,3549.6,3549.5,3.2078]
[1754274434842,4.7283,3549.6,3549.5,3.7985]
[1754274435042,4.7283,3549.6,3549.5,7.6751]
[1754274435244,3.95782,3550.1,3550.0,0.5907]
[1754274435449,26.17262,3550.1,3550.0,3.6043]
[1754274435851,26.17262,3550.1,3550.0,1.1217]
[1754274436154,26.17162,3550.1,3550.0,0.5907]
[1754274438352,23.38882,3550.1,3549.9,3.2078]
[1754274438557,4.7283,3550.0,3549.9,3.2078]
[1754274438852,3.9521,3550.0,3549.9,3.2078]
[1754274439153,4.7283,3549.5,3549.4,3.7985]
[1754274439354,4.7283,3549.5,3549.4,7.6751]
[1754274439957,4.7283,3549.5,3549.4,6.8121]
[1754274440152,4.7283,3549.5,3549.4,3.7985]
[1754274440353,4.7283,3549.5,3549.4,3.2078]
[1754274440653,4.7283,3549.5,3549.1,0.8147]
[1754274440654,3.4255,3549.5,3549.1,0.8147]
[1754274440854,5.29175,3549.2,3549.1,1.4054]
[1754274441160,5.29175,3549.2,3549.0,4.1685]
[1754274441161,4.7283,3549.1,3549.0,3.7985]
[1754274441357,4.7283,3549.1,3549.0,5.5739]
[1754274441748,4.7283,3549.1,3549.0,3.7985]
[1754274442556,4.7283,3549.1,3549.0,3.2078]
[1754274444963,4.7283,3549.1,3549.0,3.7985]
[1754274445965,3.9521,3549.8,3549.7,0.5907]
[1754274446172,26.50165424,3549.8,3549.7,3.6043]
[1754274446460,0.5634,3549.5,3549.4,3.2078]
[1754274446665,0.5634,3549.5,3549.4,0.5907]
[1754274446666,5.2917,3549.5,3549.4,0.5907]
[1754274447255,5.2917,3549.5,3549.2,0.863]
[1754274447256,1.20613,3549.4,3549.3,2.8971]
[1754274447461,23.36393,3549.4,3549.3,3.6043]
[1754274447863,26.14673,3549.4,3549.3,3.6043]
[1754274448969,26.14673,3549.4,3549.3,4.4673]
[1754274449774,26.14673,3549.4,3549.3,3.6043]
[1754274450277,4.7283,3549.1,3549.0,3.2078]
[1754274450469,25.5753,3549.1,3549.0,3.2078]
[1754274451069,25.5753,3549.1,3549.0,3.7985]
[1754274451572,25.5753,3549.1,3549.0,5.5739]
[1754274452670,25.5753,3549.1,3549.0,3.2078]
[1754274453174,25.5753,3549.1,3549.0,3.7985]
[1754274453674,23.851,3549.1,3549.0,5.0367]
[1754274453877,23.851,3549.1,3549.0,7.6751]
[1754274454768,24.6272,3549.1,3549.0,7.6751]
[1754274455875,25.5753,3549.1,3549.0,7.6751]
[1754274456673,25.5753,3549.1,3549.0,3.2078]
[1754274457375,25.5753,3549.1,3549.0,3.7985]
[1754274458668,25.5753,3549.1,3549.0,3.2078]
[1754274459472,25.5753,3549.1,3549.0,3.7985]
[1754274461374,25.5753,3549.1,3549.0,7.6751]
[1754274462077,25.5753,3549.1,3549.0,6.8121]
[1754274463081,25.5753,3549.1,3549.0,7.6751]
[1754274463280,25.5753,3549.1,3549.0,3.7985]
[1754274464274,25.5753,3549.1,3549.0,3.2078]
[1754274465377,25.5753,3549.1,3549.0,3.8426]
[1754274466977,25.5753,3549.1,2230.7,0.85282895]
[1754274466978,0.56361,3548.2,3548.1,7.6116]
[1754274467286,25.99061,3548.2,3548.1,0.6348]
[1754274468080,2.37834,3548.0,3547.9,2.3598]
[1754274468285,25.98864,3548.0,3547.9,2.3598]
[1754274468686,25.98864,3548.0,3547.9,0.6348]
[1754274469388,25.98864,3548.0,3547.9,4.4038]
[1754274470082,25.98864,3548.0,3547.9,0.6348]
[1754274470287,2.73749,3547.7,3547.6,2.8908]
[1754274470493,25.02319,3547.7,3547.6,3.5792]
[1754274470690,25.02319,3547.7,3547.6,4.4038]
[1754274470882,25.98469,3547.7,3547.6,4.4038]
[1754274471085,0.56374,3547.4,3547.3,3.2078]
[1754274471287,22.1291,3547.4,3547.3,1.3232]
[1754274471491,20.791,3547.4,3547.3,4.4038]
[1754274472195,0.56373,3547.5,3547.3,1.8542]
[1754274472483,22.6057,3547.4,3547.3,1.8542]
[1754274472788,23.6464,3547.4,3547.3,1.8542]
[1754274472990,24.4555,3547.4,3547.3,4.4038]
[1754274474395,3.6645,3547.4,3547.3,4.4038]
[1754274474593,25.409,3547.4,3547.3,4.4038]
[1754274477292,4.626,3547.4,3547.3,4.4038]
[1754274477498,0.56368,3547.8,3547.7,4.4038]
[1754274477692,21.33968,3547.8,3547.7,4.4038]
[1754274477998,20.776,3547.8,3547.7,4.4038]
[1754274480098,23.6314,3547.8,3547.7,4.4038]
[1754274480299,25.402,3547.8,3547.7,4.4038]
[1754274480794,3.6645,3547.8,3547.7,4.4038]
[1754274481000,3.41905,3548.0,3547.9,1.8542]
[1754274481294,25.95665,3548.0,3547.9,4.4038]
[1754274482599,2.3784,3547.7,3547.6,4.4038]
[1754274482794,26.10971257,3547.7,3547.6,0.6348]
[1754274482992,2.37844,3547.4,3547.3,3.5792]
[1754274483193,25.95074,3547.4,3547.3,3.5792]
[1754274483787,25.95074,3547.4,3547.3,2.0858]
[1754274483988,2.37848,3547.1,3547.0,4.4286]
[1754274484201,25.384,3547.1,3547.0,4.4286]
[1754274484594,24.4225,3547.1,3547.0,4.4286]
[1754274485100,25.384,3547.1,3547.0,0.6348]
[1754274485888,25.384,3547.1,3547.0,3.5839]
[1754274486289,25.384,3547.1,3547.0,4.4286]
[1754274486695,25.384,3547.1,3547.0,3.5839]
[1754274486996,25.384,3547.1,3547.0,2.0858]
[1754274487598,25.384,3547.1,3547.0,2.8955]
[1754274487800,25.384,3547.1,3547.0,3.5839]
[1754274488102,2.96931257,3547.4,3547.2,4.4286]
[1754274488103,2.8554,3547.3,3547.2,4.4286]
[1754274488399,23.6024,3547.3,3547.2,4.4286]
[1754274488597,23.6004,3547.3,3547.2,4.4286]
[1754274489302,25.371,3547.3,3547.2,4.4286]
[1754274489799,25.371,3547.3,3546.9,1.57876651]
[1754274489800,1.8147,3547.0,3546.9,1.64975651]
[1754274490000,25.367,3547.0,3546.9,1.64975651]
[1754274490206,28.33631257,3547.0,3546.9,1.01495651]
[1754274490692,31.54411257,3547.0,3546.9,1.01495651]
[1754274490899,3.6645,3546.0,3545.9,4.3736]
[1754274491105,25.364,3546.0,3545.9,4.3736]
[1754274491901,4.626,3547.0,3546.9,3.5839]
[1754274492101,22.5497,3547.0,3546.9,4.4286]
[1754274492604,25.361,3547.0,3546.9,1.1658]
[1754274492801,4.626,3546.7,3546.6,1.1658]
[1754274493001,25.358,3546.7,3546.6,1.1658]
[1754274493198,25.358,3546.7,3546.6,2.8955]
[1754274493900,25.92185,3546.7,3546.6,1.1658]
[1754274494101,4.5981,3546.4,3546.3,0.6302]
[1754274494295,25.3281,3546.4,3546.3,0.6302]
[1754274495100,25.3281,3546.4,3546.3,1.1667]
[1754274495307,25.3281,3546.4,3546.3,4.3879]
[1754274497308,25.3281,3546.4,3546.3,3.5432]
[1754274499906,25.3281,3546.4,3546.3,2.8656]
[1754274500104,25.3281,3546.4,3546.3,2.0969]
[1754274500310,25.3281,3546.4,3546.3,1.1667]
[1754274500806,0.56391,3546.3,3546.0,4.9067]
[1754274501006,4.5981,3546.1,3546.0,7.5957]
[1754274501613,4.5981,3546.1,3546.0,5.8208]
[1754274501813,4.5981,3546.1,3546.0,6.751]
[1754274502011,4.5981,3546.1,3546.0,7.5957]
[1754274502717,4.5981,3546.1,3546.0,6.751]
[1754274503118,4.5981,3546.1,3546.0,7.5957]
[1754274509912,2.8477,3546.7,3546.6,1.8443]
[1754274510118,23.5317,3546.7,3546.6,4.3879]
[1754274510714,25.2821,3546.7,3546.6,4.3879]
[1754274512619,3.2078,3547.2,3546.9,4.3879]
[1754274512924,2.7489,3547.4,3547.3,2.689]
[1754274513222,25.22702579,3547.4,3547.3,2.689]
[1754274513523,25.22702579,3547.4,3547.3,4.3879]
[1754274513719,25.2731,3547.4,3547.3,4.3879]
[1754274519329,4.5981,3547.4,3547.3,4.3879]
[1754274519530,25.2571,3547.4,3547.3,4.3879]
[1754274520129,25.2471,3547.4,3547.3,3.5432]
[1754274520431,1.7857,3547.1,3547.0,6.63719]
[1754274520620,24.1851,3547.1,3547.0,6.63719]
[1754274520826,25.2471,3547.1,3547.0,3.2078]
[1754274521127,1.7857,3546.7,3546.6,2.8656]
[1754274521424,25.2451,3546.7,3546.6,2.8656]
[1754274521630,25.2451,3546.7,3546.6,1.1667]
[1754274522028,1.062,3547.3,3547.1,0.8447]
[1754274522231,1.265,3547.2,3547.1,4.3879]
[1754274522433,1.062,3547.3,3547.2,1.8443]
[1754274522732,1.062,3547.3,3547.2,4.3879]
[1754274522733,24.4529,3547.3,3547.2,4.3879]
[1754274522923,25.2401,3547.3,3547.2,4.3879]
[1754274524334,4.5981,3547.3,3547.2,4.3879]
[1754274524632,25.2391,3547.3,3547.2,4.3879]
[1754274525429,4.5504,3547.6,3547.5,3.14782]
[1754274525633,25.1854,3547.6,3547.5,4.88172]
[1754274525826,4.5504,3547.6,3547.5,4.88172]
[1754274526026,25.1804,3547.6,3547.5,4.88172]
[1754274527324,4.5504,3547.8,3547.7,2.47808]
[1754274527630,3.2078,3548.5,3548.2,1.1074]
[1754274527838,3.2078,3548.5,3548.4,4.318]
[1754274528325,5.5767,3548.5,3548.4,4.318]
[1754274528524,2.3689,3548.5,3548.4,4.318]
[1754274528938,22.9869,3548.5,3548.4,4.318]
[1754274529437,23.5264,3548.5,3548.4,4.318]
[1754274530338,4.5504,3548.4,3548.3,4.3152]
[1754274530644,4.5504,3548.4,3548.3,3.2078]
[1754274531634,1.8379,3548.0,3547.9,4.3152]
[1754274531940,25.1594,3548.0,3547.9,6.0495]
[1754274532938,25.1594,3548.0,3547.9,6.7192]
[1754274533543,25.1594,3548.0,3547.9,4.3152]
[1754274534940,24.405,3548.0,3547.9,2.7044]
[1754274535140,25.1594,3548.0,3547.9,3.5114]
[1754274535439,25.1594,3548.0,3547.9,4.318]
[1754274535834,25.1594,3548.0,3547.9,7.5258]
[1754274536442,21.6795,3548.0,3547.9,8.08946]
[1754274536644,22.9779,3548.0,3547.9,8.08946]
[1754274536939,23.5174,3548.0,3547.9,8.08946]
[1754274537339,24.405,3548.0,3547.9,8.08946]
[1754274537527,25.1594,3548.0,3547.9,5.7919]
[1754274537732,25.1594,3548.0,3547.9,5.1222]
[1754274539041,25.1594,3548.0,3547.9,4.3152]
[1754274539741,25.1594,3548.0,3547.9,5.1222]
[1754274540238,21.6795,3548.0,3547.9,7.5258]
[1754274540435,20.609,3548.0,3547.9,7.5258]
[1754274541342,21.6795,3548.0,3547.9,7.5258]
[1754274541635,22.9779,3548.0,3547.9,7.5258]
[1754274541843,23.5174,3548.0,3547.9,7.5258]
[1754274542043,25.1594,3548.0,3547.9,7.5258]
[1754274542542,21.6795,3548.0,3547.9,7.5258]
[1754274542735,23.5174,3548.0,3547.9,7.5258]
[1754274543040,25.1594,3548.0,3547.9,7.5258]
[1754274543542,25.1594,3548.0,3547.9,3.2078]
[1754274543838,25.1594,3548.0,3547.9,3.8199]
[1754274544037,25.1594,3548.0,3547.9,3.2078]
[1754274545044,25.1594,3548.0,3547.9,3.8199]